fUSD/lending_fUSD_20240617
["ID","MTS","AMOUNT","RATE_DAILY","PERIOD"]
[329723783,1718610635809,-929.75333317,0.00013898,2]
[329723784,1718610635837,-300.0,0.00013899,2]
[329723785,1718610635850,-399.5407,0.000139,2]
[329723786,1718610635861,-258.2312,0.000139,2]
[329723787,1718610635871,-1218.9481,0.000139,2]
[329723788,1718610635882,-2500.0,0.000139,2]
[329723789,1718610635893,-48511.10181275,0.00014,2]
[329723790,1718610635903,-351338.26096858,0.00014,2]
[329723791,1718610635928,-338.11411395,0.000148,2]
[329723792,1718610635941,-150.0,0.00014986,2]
[329723793,1718610635962,-226141.55630716,0.00015,2]
[329723794,1718610635992,-1047.79360002,0.00015,2]
[329723795,1718610636014,-420.0,0.00015229,2]
[329723796,1718610636025,-169.7,0.00015502,2]
[329723797,1718610636035,-300.0,0.000159,5]
[329723798,1718610636056,-150.99,0.000159,2]
[329723799,1718610636070,-348.18949365,0.00016387,2]
[329723800,1718610636096,-1354.22365978,0.00016387,2]
[329723801,1718610636107,-499.99,0.00016387,2]
[329723802,1718610636117,-136946.1037,0.00016387,2]
[329723803,1718610636131,-9717.63,0.00016387,2]
[329723804,1718610636142,-338.11411389,0.00016585,2]
[329723805,1718610636152,-154.07,0.00016619,2]
[329723806,1718610636163,-587.0,0.00016686,2]
[329723807,1718610636174,-462.51,0.00016791,2]
[329723808,1718610636189,-164.74,0.00016813,2]
[329723809,1718610636202,-164.74,0.00016988,2]
[329723810,1718610636235,-164.74,0.00017164,2]
[329723811,1718610636254,-999.99,0.0001726,2]
[329723812,1718610636264,-164.74,0.00017339,2]
[329723813,1718610636283,-169.26,0.00017371,2]
[329723814,1718610636294,-150.99,0.00017472,2]
[329723815,1718610636309,-164.74,0.00017514,2]
[329723816,1718610636354,-4645.96,0.00017682,2]
[329723817,1718610636366,-164.74,0.00017689,2]
[329723818,1718610636382,-700.0,0.000177,2]
[329723819,1718610636403,-154.07,0.00017727,2]
[329723820,1718610636425,-823.0,0.00018282,2]
[329723821,1718610636456,-338.11411389,0.00018371,2]
[329723822,1718610636467,-425.49,0.00018716,2]
[329723823,1718610636488,-154.07,0.00018835,2]
[329723824,1718610636499,-184.35,0.0001942,2]
[329723825,1718610636527,-100000.0,0.000199,2]
[329723826,1718610636542,-154.07,0.00019943,2]
[329723827,1718610636564,-1152.0,0.00020031,2]
[329723828,1718610636575,-177.92943971,0.00020038,2]
[329723829,1718610636602,-226.83513534,0.000201,2]
[329723830,1718610636617,-250.0,0.00020138,2]
[329723831,1718610636634,-338.11411389,0.00020156,2]
[329723832,1718610636655,-36502.9365,0.0002023,2]
[329723833,1718610636675,-166.01,0.00020236,2]
[329723834,1718610636687,-250.0,0.0002026,2]
[329723835,1718610636712,-200.0,0.00020452,2]
[329723836,1718610636731,-335.09,0.00020485,2]
[329723837,1718610636765,-506.64,0.00020509,2]
[329723838,1718610636815,-169.68,0.00020564,2]
[329723839,1718610636828,-425.49,0.0002098,2]
[329723840,1718610636862,-167.01,0.00021093,2]
[329723841,1718610636901,-1965.3,0.0002131,2]
[329723842,1718610636922,-437.35,0.00021918,2]
[329723843,1718610636933,-250.0,0.00021918,2]
[329723844,1718610636985,-338.11411389,0.00021941,2]
[329723845,1718610637023,-1613.0,0.00021947,2]
[329723846,1718610637048,-165.66,0.00022306,2]
[329723847,1718610637073,-165.66,0.00022325,2]
[329723848,1718610637085,-165.66,0.00022344,2]
[329723849,1718610637096,-165.66,0.00022362,2]
[329723850,1718610637115,-165.66,0.00022381,2]
[329723851,1718610637145,-165.66,0.00022399,2]
[329723852,1718610637184,-165.66,0.00022418,2]
[329723853,1718610637197,-166.01,0.00022766,2]
[329723854,1718610637211,-335.09,0.00023225,2]
[329723855,1718610637230,-425.49,0.00023244,2]
[329723856,1718610637245,-338.11411389,0.00023726,2]
[329723857,1718610637257,-420.0,0.00024047,2]
[329723858,1718610637286,-150.0,0.00024166,2]
[329723859,1718610637321,-1337.93854942,0.00024188,2]
[329723860,1718610637378,-172.62,0.00024384,2]
[329723861,1718610637415,-500.0,0.00025008,2]
[329723862,1718610637453,-166.01,0.00025295,2]
[329723863,1718610637471,-152.0,0.00025441,3]
[329723864,1718610637483,-425.49,0.00025508,2]
[329723865,1718610637516,-338.11411389,0.00025512,2]
[329723866,1718610637532,-151.0,0.00025598,4]
[329723867,1718610637544,-171.08,0.00025782,2]
[329723868,1718610637572,-335.09,0.00025964,2]
[329723869,1718610637585,-152.99643742,0.0002601,2]
[329723870,1718610637597,-236.11484856,0.00026032,2]
[329723871,1718610637622,-154.22048508,0.00026069,2]
[329723872,1718610637634,-219.58,0.00026082,3]
[329723873,1718610637647,-169.80630729,0.00026088,2]
[329723874,1718610637664,-169.80630729,0.00026092,2]
[329723875,1718610637680,-236.11484856,0.00026103,2]
[329723876,1718610637923,-150.0,0.00026125,2]
[329723877,1718610637939,-166.66666666,0.00026159,2]
[329723878,1718610637958,-4006.2544248,0.00026185,2]
[329723879,1718610637971,-373.11942362,0.00026189,2]
[329723880,1718610638025,-298.179286,0.00026191,2]
[329723881,1718610638048,-152.58898578,0.00026222,2]
[329723882,1718610638059,-154.22048508,0.00026229,2]
[329723883,1718610638104,-162.66215048,0.0002626,2]
[329723884,1718610638136,-236.11484856,0.00026277,2]
[329723885,1718610638166,-4006.2544248,0.00026293,2]
[329723886,1718610638184,-2500.0,0.000263,2]
[329723887,1718610638222,-282.17055785,0.00026301,2]
[329723888,1718610638244,-169.80630729,0.00026312,2]
[329723889,1718610638310,-152.99643742,0.00026322,2]
[329723890,1718610638337,-600.0,0.000264,9]
[329723891,1718610638350,-236.11484856,0.00026411,2]
[329723892,1718610638411,-236.11484856,0.00026484,2]
[329723893,1718610638439,-1000.0,0.000265,9]
[329723894,1718610638453,-166.66666667,0.00026513,2]
[329723895,1718610638465,-282.17055785,0.0002655,2]
[329723896,1718610638477,-151.0,0.00026561,5]
[329723897,1718610638492,-165.45409526,0.00026566,2]
[329723898,1718610638510,-1300.0,0.000266,9]
[329723899,1718610638539,-236.11484856,0.00026651,2]
[329723900,1718610638551,-658.34296707,0.00026653,2]
[329723901,1718610638563,-152.99643742,0.0002667,2]
[329723902,1718610638585,-154.27538672,0.00026684,2]
[329723903,1718610638599,-1600.0,0.000267,9]
[329723904,1718610638610,-282.17055785,0.0002672,2]
[329723905,1718610638631,-282.17055785,0.00026733,2]
[329723906,1718610638653,-223.16621281,0.00026751,2]
[329723907,1718610638668,-223.16621281,0.00026754,2]
[329723908,1718610638696,-223.16621281,0.00026755,2]
[329723909,1718610638713,-223.16621281,0.0002677,2]
[329723910,1718610638724,-154.27538672,0.00026772,2]
[329723911,1718610638745,-223.16621281,0.00026787,2]
[329723912,1718610638760,-300.0,0.000268,9]
[329723913,1718610638786,-152.99643742,0.00026874,2]
[329723914,1718610638814,-300.0,0.000269,9]
[329723915,1718610638834,-294.61446051,0.00026906,2]
[329723916,1718610638861,-300.23383525,0.00026907,2]
[329723917,1718610638872,-300.23383525,0.00026922,2]
[329723918,1718610638883,-304.58,0.00026959,2]
[329723919,1718610638895,-166.66666667,0.00026967,2]
[329723920,1718610638924,-14123.1506174,0.00027,3]
[329723921,1718610638936,-80.07151936,0.00027014,2]
[329723922,1718610638957,-75.23648726,0.00027014,2]
[329723923,1718610638974,-162.66215048,0.00027037,2]
[329723924,1718610638987,-161.48960065,0.0002705,2]
[329723925,1718610639021,-154.27538672,0.00027056,2]
[329723926,1718610639070,-236.11484856,0.00027086,2]
[329723927,1718610639113,-2045.53295273,0.00027088,2]
[329723930,1718610639172,-282.17055785,0.00027088,2]
[329723931,1718610639186,-298.179286,0.00027091,2]
[329723932,1718610639203,-236.11484856,0.00027092,2]
[329723934,1718610639281,-282.17055785,0.00027094,2]
[329723936,1718610639294,-1222.64,0.00027123,8]
[329723938,1718610639311,-1222.64,0.00027123,8]
[329723939,1718610639324,-1222.64,0.00027123,8]
[329723940,1718610639341,-1135.11134144,0.00027123,8]
[329723941,1718610639380,-87.52865856,0.00027123,8]
[329723942,1718610639409,-150.32777,0.00027123,2]
[329723943,1718610639442,-265.16628944,0.00027177,2]
[329723944,1718610639470,-234.83371056,0.00027177,2]
[329723945,1718610639492,-200.0,0.00027177,2]
[329723946,1718610639517,-160.13713916,0.00027197,2]
[329723947,1718610639544,-662.00555731,0.00027197,2]
[329723948,1718610639557,-264.78580518,0.000272,2]
[329723949,1718610639589,-1052.60047608,0.000272,2]
[329723950,1718610639788,-5456.88668306,0.000272,2]
[329723985,1718610646359,-1311.17835468,0.000272,2]
[329723986,1718610646372,-662.00555725,0.00027215,2]
[329723987,1718610646384,-662.00555725,0.00027234,2]
[329723988,1718610646405,-152.58898578,0.00027234,2]
[329723989,1718610646437,-223.87530583,0.0002725,2]
[329723990,1718610646476,-149.24411779,0.0002725,2]
[329723991,1718610646538,-413.92057913,0.00027252,2]
[329723992,1718610646564,-549.31830308,0.00027252,2]
[329723996,1718610647654,-509.49016426,0.00016287,2]
[329723998,1718610647697,-112.68725417,0.00027252,2]
[329723999,1718610647721,-282.17055785,0.00027265,2]
[329724000,1718610647735,-662.00555725,0.00027271,2]
[329724002,1718610647757,-662.00555725,0.00027289,2]
[329724004,1718610647771,-152.0,0.0002729,4]
[329724006,1718610647791,-10000.0,0.00027297,2]
[329724007,1718610647806,-553.88478313,0.00027297,2]
[329724008,1718610647825,-172.46602549,0.00027297,2]
[329724009,1718610647844,-353.45939329,0.00027297,2]
[329724010,1718610647884,-177.9294397,0.00027297,2]
[329724011,1718610647899,-338.11411389,0.00027297,2]
[329724012,1718610647910,-1222.64,0.00027299,8]
[329724013,1718610647937,-28809.74207051,0.000273,2]
[329724014,1718610648448,-1040.96704952,0.000273,2]
[329724015,1718610648472,-7750.64820086,0.000273,2]
[329724016,1718610648487,-2426.64315418,0.000273,2]
[329724024,1718610650421,-7303.33787597,0.000273,2]
[329724025,1718610650908,-68719.88186716,0.000273,2]
[329724026,1718610650928,-6400.25228493,0.000273,2]
[329724027,1718610650949,-6504.56252221,0.000273,2]
[329724028,1718610651001,-1675.69422699,0.000273,2]
[329724029,1718610651031,-1749.91574108,0.000273,2]
[329724076,1718611835408,-155.0,0.0001379,2]
[329724077,1718611835429,-205.15170629,0.00013791,2]
[329724078,1718611835441,-158.06324404,0.000138,2]
[329724079,1718611835473,-8474.9889,0.000139,2]
[329724080,1718611835515,-1948.6667,0.000139,2]
[329724081,1718611835529,-30513.2802,0.000139,2]
[329724082,1718611835560,-2687.0,0.000177,2]
[329724083,1718611835573,-1250.0,0.00021,2]
[329724084,1718611835587,-499.99,0.00021,2]
[329724085,1718611835616,-417.56,0.00021428,2]
[329724086,1718611835659,-500.0,0.000219,2]
[329724087,1718611835713,-577.0983671,0.00022248,2]
[329724088,1718611835730,-250.0,0.00022659,2]
[329724089,1718611835789,-258.77,0.00022681,2]
[329724090,1718611835803,-166.38,0.00022729,2]
[329724091,1718611835816,-506.64,0.00023043,2]
[329724092,1718611835827,-166.32,0.00023098,2]
[329724093,1718611835860,-250.0,0.00023381,2]
[329724094,1718611835879,-417.56,0.00023692,2]
[329724095,1718611835896,-364.45,0.00023781,2]
[329724096,1718611835907,-250.0,0.00023794,2]
[329724097,1718611835934,-1556.0,0.00024328,2]
[329724098,1718611835950,-394.28,0.00024384,2]
[329724099,1718611835966,-258.06,0.00024384,2]
[329724100,1718611835986,-175.39668906,0.000249,2]
[329724101,1718611836010,-500.0,0.000249,2]
[329724102,1718611836021,-14627.83699349,0.000249,2]
[329724103,1718611836035,-435.0,0.000249,2]
[329724104,1718611836049,-8736.9780181,0.000249,2]
[329724105,1718611836065,-20106.10361351,0.000249,2]
[329724106,1718611836079,-836.74867698,0.000249,2]
[329724107,1718611836113,-10523.01531673,0.000249,2]
[329724108,1718611836137,-4255.0,0.000249,2]
[329724109,1718611836159,-675.14765948,0.000249,2]
[329724115,1718611837127,-2687.98720018,0.000249,2]
[329724116,1718611837142,-271.2999999,0.000249,2]
[329724117,1718611837160,-674.0,0.000249,2]
[329724118,1718611837185,-315.04,0.000249,2]
[329724119,1718611837224,-728.92117432,0.000249,2]
[329724120,1718611837241,-600.0,0.000249,2]
[329724129,1718611840909,-515.29338044,0.000249,2]
[329724130,1718611840954,-417.33513399,0.000249,2]
[329724131,1718611840977,-720.80405006,0.000249,2]
[329724132,1718611841020,-10995.6244994,0.000249,2]
[329724133,1718611841056,-8886.05778342,0.000249,2]
[329724134,1718611841086,-1528.47049274,0.000249,2]
[329724135,1718611841120,-333.26387152,0.000249,2]
[329724136,1718611841132,-1320.62332091,0.00024998,2]
[329724137,1718611841184,-1204.16348016,0.00024998,2]
[329724138,1718611841196,-155.73842601,0.00024999,2]
[329724139,1718611841221,-500.0,0.00024999,2]
[329724140,1718611841232,-500.0,0.00024999,2]
[329724141,1718611841282,-500.0,0.00024999,2]
[329724142,1718611841312,-552.55968811,0.00024999,2]
[329724143,1718611841336,-16464.96302734,0.00025,7]
[329724149,1718611842150,-1023.5008851,0.00025,7]
[329724150,1718611842169,-358.48667185,0.00025,7]
[329724151,1718611842183,-361.675,0.00025,7]
[329724152,1718611842199,-35090.0,0.00025,7]
[329724153,1718611842227,-282.04696975,0.00025,7]
[329724154,1718611842280,-566.76354058,0.00025,7]
[329724155,1718611842955,-2883.43524583,0.00025,7]
[329724218,1718611846281,-8056.12198519,0.00025,7]
[329724262,1718611847523,-2267.5,0.00025,7]
[329724263,1718611847570,-728.22246321,0.00025,7]
[329724264,1718611847594,-580.9794509,0.00025,7]
[329724265,1718611847616,-44008.59491679,0.00025,7]
[329724266,1718611847651,-77379.78348561,0.00025,7]
[329724267,1718611847679,-2289.4280268,0.00025,7]
[329724268,1718611847696,-1024.33132291,0.00025,7]
[329724269,1718611847713,-621.77784,0.00025,7]
[329724270,1718611847737,-498.67240749,0.00025,7]
[329724271,1718611847766,-977.79543901,0.00025,7]
[329724272,1718611847789,-5206.06974206,0.00025,7]
[329724273,1718611847818,-44071.1181642,0.00025,7]
[329724274,1718611847833,-606.70265586,0.00025,7]
[329724285,1718611849404,-221.73413042,0.00024999,2]
[329724287,1718611849426,-205.51709571,0.00024999,2]
[329724288,1718611849438,-33145.02405777,0.00025,7]
[329724290,1718611849452,-311.41466076,0.00025,7]
[329724291,1718611849469,-1938.82649544,0.00025,7]
[329724293,1718611849488,-1224.39746683,0.00025,7]
[329724295,1718611850202,-775.51831983,0.00025,7]
[329724296,1718611850224,-501.97074996,0.00025,7]
[329724297,1718611850242,-3383.5,0.00025,7]
[329724298,1718611851168,-1175.55550787,0.00024998,2]
[329724300,1718611851194,-322.9200001,0.00024998,2]
[329724305,1718611858696,-177.9294397,0.000249,2]
[329724306,1718611858712,-332.27611412,0.00024998,2]
[329724307,1718611858729,-826.25901472,0.00024998,2]
[329724310,1718611859746,-36.95394228,0.00024998,2]
[329724311,1718611859778,-670.67572301,0.00025,7]
[329724312,1718611859846,-1314592.14180234,0.00025,7]
[329724313,1718611859896,-1220.00000001,0.00025,7]
[329724341,1718612777009,301.7498267,0.000275,120]
[329724353,1718612984388,5821.21628513,0.00012998,2]
[329724382,1718613035183,-155.0,0.0001309,2]
[329724383,1718613035201,-389.0998858,0.0001309,2]
[329724384,1718613035216,-404.22716881,0.0001309,2]
[329724385,1718613035231,-155.0,0.00013091,2]
[329724386,1718613035260,-3884.29156965,0.00013091,2]
[329724387,1718613035328,-1705.14992407,0.00013091,2]
[329724388,1718613035351,-206.22984294,0.00013092,2]
[329724389,1718613035378,-2339.46926962,0.00013092,2]
[329724390,1718613035390,-158.71989561,0.00013093,2]
[329724391,1718613035410,-155.0,0.00013093,2]
[329724392,1718613035445,-339.37755264,0.00013094,2]
[329724393,1718613035462,-205.15170629,0.00013094,2]
[329724394,1718613035477,-532.14539917,0.00013094,2]
[329724395,1718613035494,-408.07846027,0.00013095,2]
[329724396,1718613035548,-300.0,0.00013096,2]
[329724397,1718613035560,-287.0,0.00013099,2]
[329724398,1718613035585,-499.99,0.00013215,2]
[329724399,1718613035600,-327.06,0.00013215,2]
[329724400,1718613035616,-162.36595756,0.00013538,2]
[329724401,1718613035628,-1165.95,0.00013538,2]
[329724402,1718613035644,-15696.64937925,0.00013863,2]
[329724403,1718613035657,-3848.38,0.0001399,2]
[329724404,1718613035667,-2155.01321686,0.0001399,2]
[329724405,1718613035677,-153.31,0.00015337,2]
[329724406,1718613035722,-150.99,0.00016257,2]
[329724407,1718613035737,-447.09,0.00018573,2]
[329724408,1718613035750,-15653.85,0.00019605,2]
[329724409,1718613035794,-2057.76,0.00020219,2]
[329724410,1718613035821,-191.59,0.00020255,2]
[329724411,1718613035836,-179.71,0.00020384,2]
[329724412,1718613035904,-4716.12,0.00020481,2]
[329724413,1718613035944,-250.0,0.00020488,2]
[329724414,1718613035963,-515.08,0.00020647,2]
[329724415,1718613036017,-507.0,0.0002082,2]
[329724416,1718613036046,-447.09,0.00020837,2]
[329724417,1718613036068,-1250.0,0.00021,2]
[329724418,1718613036079,-298.8,0.00021014,2]
[329724419,1718613036093,-250.0,0.00021022,2]
[329724420,1718613036136,-1000.0,0.00021098,2]
[329724421,1718613036158,-179.71,0.00021446,2]
[329724422,1718613036193,-500.0,0.000219,2]
[329724423,1718613036236,-330.58,0.00021918,2]
[329724424,1718613036251,-250.0,0.00021918,2]
[329724425,1718613036291,-1480.4175959,0.00022,2]
[329724426,1718613036326,-2000.0,0.00022192,3]
[329724427,1718613036354,-1300.0,0.00023,2]
[329724428,1718613036384,-447.09,0.00023101,2]
[329724429,1718613036435,-515.08,0.00023387,2]
[329724430,1718613036456,-151.0,0.00024068,3]
[329724431,1718613036470,-584.72754414,0.00024251,2]
[329724432,1718613036486,-161.46,0.00024384,2]
[329724433,1718613036504,-502.23,0.0002454,2]
[329724434,1718613036527,-383.65473788,0.00024744,2]
[329724435,1718613036570,-300.16164722,0.0002475,2]
[329724436,1718613036615,-14378.67204869,0.0002475,2]
[329724437,1718613036627,-13038.4949,0.000248,2]
[329724438,1718613036656,-5091.9226,0.000248,2]
[329724439,1718613036679,-2500.0,0.000248,2]
[329724440,1718613036936,-448.1151412,0.000248,2]
[329724441,1718613036965,-172.61,0.0002489,3]
[329724442,1718613036980,-517.88,0.0002489,3]
[329724443,1718613037017,-5386.53299963,0.000249,2]
[329724444,1718613037044,-98114.4482,0.000249,2]
[329724445,1718613037068,-17641.0,0.000249,2]
[329724446,1718613037093,-1551.0,0.000249,2]
[329724447,1718613037119,-327.1404915,0.000249,2]
[329724448,1718613037147,-160.5654927,0.000249,2]
[329724449,1718613037188,-1673.5,0.00024962,2]
[329724450,1718613037208,-203.63423646,0.00024998,2]
[329724451,1718613037227,-410.0140434,0.00024998,2]
[329724452,1718613037241,-1624.43648765,0.00024998,2]
[329724453,1718613037297,-155.0,0.00024998,2]
[329724454,1718613037309,-536.72357785,0.00024998,2]
[329724455,1718613037325,-162.81149556,0.00024998,2]
[329724456,1718613037344,-238.93558067,0.00024999,2]
[329724457,1718613037360,-155.0,0.00024999,2]
[329724458,1718613037395,-4449.51330229,0.00024999,2]
[329724459,1718613037417,-481.4646182,0.00024999,2]
[329724460,1718613037435,-728.22098,0.00024999,2]
[329724461,1718613037446,-192571.10749467,0.00025,7]
[329724462,1718613037468,-299.99,0.00025,7]
[329724463,1718613037481,-1722.88429448,0.00025,7]
[329724471,1718613038195,-871.5527439,0.00025,7]
[329724473,1718613038225,-1382.79356823,0.00025,7]
[329724475,1718613038238,-32494.57328921,0.00025,7]
[329724477,1718613038272,-180.76221794,0.00025,2]
[329724479,1718613038285,-1047.44458208,0.00025,2]
[329724480,1718613038299,-447.31440333,0.00025,2]
[329724482,1718613038310,-948.25766331,0.00025,2]
[329724483,1718613038332,-35007.67515838,0.00025,2]
[329724485,1718613038344,-500.0,0.00025,2]
[329724486,1718613038408,-834.1091607,0.00025,2]
[329724487,1718613038440,-931.71971366,0.00025,2]
[329724488,1718613038462,-2000.0,0.00025,2]
[329724489,1718613038479,-200.0,0.00025,2]
[329724490,1718613038519,-1350.0,0.00025,2]
[329724491,1718613038538,-630.46794148,0.00025,2]
[329724492,1718613038554,-151.0,0.00025021,7]
[329724493,1718613038566,-448.11514119,0.00025077,2]
[329724494,1718613038578,-151.0,0.00025125,4]
[329724495,1718613038590,-5386.53299956,0.00025127,2]
[329724496,1718613038603,-2000.0,0.0002525,2]
[329724497,1718613038616,-200.0,0.0002525,2]
[329724498,1718613038629,-160.56549265,0.000253,2]
[329724499,1718613038651,-5386.53299956,0.00025355,2]
[329724500,1718613038667,-448.11514119,0.00025355,2]
[329724501,1718613038692,-447.09,0.00025365,2]
[329724502,1718613038721,-1801.45944297,0.00025503,2]
[329724503,1718613038766,-200.0,0.00025503,2]
[329724504,1718613038784,-151.0,0.00025532,4]
[329724505,1718613038809,-5386.53299956,0.00025582,2]
[329724506,1718613038836,-448.11514119,0.00025632,2]
[329724507,1718613038855,-160.56549265,0.00025699,2]
[329724508,1718613038888,-200.0,0.00025758,2]
[329724509,1718613038904,-5386.53299956,0.00025809,2]
[329724510,1718613038915,-152.0,0.00025811,3]
[329724511,1718613038932,-315.20424558,0.00025886,7]
[329724512,1718613038949,-448.11514119,0.0002591,2]
[329724513,1718613038964,-200.0,0.00026015,2]
[329724514,1718613038975,-5386.53299956,0.00026036,2]
[329724515,1718613038988,-179.33506566,0.00026047,2]
[329724516,1718613039058,-151.0,0.00026053,2]
[329724517,1718613039088,-166.66666666,0.00026058,2]
[329724518,1718613039124,-152.58898578,0.00026087,2]
[329724520,1718613039182,-216.0,0.0002609,2]
[329724521,1718613039207,-160.56549265,0.00026099,2]
[329724522,1718613039236,-515.08,0.00026127,2]
[329724523,1718613039280,-154.27538672,0.00026129,2]
[329724524,1718613039315,-160.98791585,0.00026182,2]
[329724525,1718613039334,-151.0,0.00026182,5]
[329724526,1718613039361,-448.11514119,0.00026187,2]
[329724527,1718613039392,-166.66666666,0.00026196,2]
[329724528,1718613039406,-745.2395144,0.00026197,2]
[329724529,1718613039420,-152.99643742,0.00026216,2]
[329724530,1718613039431,-166.66666666,0.0002623,2]
[329724531,1718613039465,-345.22,0.0002626,3]
[329724532,1718613039514,-5386.53299956,0.00026264,2]
[329724533,1718613039541,-543.039405,0.00026302,2]
[329724534,1718613039575,-760.255166,0.00026302,2]
[329724535,1718613039597,-1172.965114,0.00026302,2]
[329724536,1718613039623,-171.28866658,0.00026329,2]
[329724537,1718613039654,-2045.53295273,0.00026331,2]
[329724538,1718613039675,-166.66666666,0.00026332,2]
[329724539,1718613039701,-169.13274947,0.00026336,2]
[329724540,1718613039730,-179.33506566,0.00026359,2]
[329724541,1718613039781,-242.85581339,0.00026364,2]
[329724542,1718613039852,-152.82567656,0.00026424,2]
[329724543,1718613039865,-152.58898578,0.00026431,2]
[329724544,1718613039882,-169.13274947,0.00026442,2]
[329724545,1718613039900,-172.9623353,0.00026455,2]
[329724546,1718613039980,-600.0,0.0002646,5]
[329724547,1718613039998,-600.0,0.0002646,5]
[329724548,1718613040009,-448.11514119,0.00026465,2]
[329724549,1718613040021,-5386.53299956,0.00026491,2]
[329724550,1718613040043,-165.45409525,0.00026608,2]
[329724551,1718613040078,-2045.53295273,0.00026614,2]
[329724552,1718613040107,-543.039405,0.00026631,2]
[329724553,1718613040123,-760.255166,0.00026631,2]
[329724554,1718613040146,-1172.965114,0.00026631,2]
[329724555,1718613040172,-179.33506566,0.00026642,2]
[329724556,1718613040190,-152.82567656,0.00026669,2]
[329724557,1718613040221,-216.0,0.0002671,2]
[329724558,1718613040252,-212.0,0.0002671,2]
[329724559,1718613040277,-5386.53299956,0.00026718,2]
[329724560,1718613040303,-172.9623353,0.00026739,2]
[329724561,1718613040345,-448.11514119,0.00026742,2]
[329724562,1718613040370,-150.0,0.00026745,2]
[329724563,1718613040388,-745.2395144,0.00026789,2]
[329724564,1718613040453,-154.23068433,0.00026846,2]
[329724565,1718613040467,-600.0,0.00026847,5]
[329724566,1718613040508,-158.42682675,0.00026874,2]
[329724567,1718613040538,-745.2395144,0.00026874,2]
[329724568,1718613040552,-173.36960567,0.000269,2]
[329724570,1718613040586,-175.39668904,0.000269,2]
[329724571,1718613040618,-7500.0,0.000269,2]
[329724572,1718613040640,-294.61446051,0.000269,2]
[329724573,1718613040662,-166.66289212,0.00026903,2]
[329724574,1718613040675,-154.23068433,0.00026917,2]
[329724575,1718613040691,-5386.53299956,0.00026945,2]
[329724576,1718613040712,-543.039405,0.0002696,2]
[329724577,1718613040767,-760.255166,0.0002696,2]
[329724578,1718613040797,-1172.965114,0.0002696,2]
[329724579,1718613040812,-253.25961252,0.00026976,2]
[329724580,1718613040847,-154.22048508,0.00026978,2]
[329724581,1718613040877,-202.10180189,0.0002699,2]
[329724582,1718613040904,-179.33506566,0.00026991,2]
[329724583,1718613040937,-242.85581339,0.00026991,2]
[329724584,1718613041008,-242.85581339,0.00026996,2]
[329724585,1718613041022,-691.0,0.00027,2]
[329724586,1718613041073,-36.36512041,0.00027,2]
[329724587,1718613041520,-667.36237526,0.00027,2]
[329724588,1718613041541,-429.27250433,0.00027,2]
[329724589,1718613041564,-32345.65558816,0.00027,3]
[329724590,1718613041578,-229897.82598566,0.00027,3]
[329724591,1718613041625,-355.34,0.00027,3]
[329724592,1718613042309,-3078.37736849,0.00027,3]
[329724593,1718613042323,-13111.38324138,0.00027,3]
[329724594,1718613042336,-418.90217464,0.00027,3]
[329724595,1718613042371,-781.95019923,0.00027,3]
[329724596,1718613042388,-2130.44985288,0.00027,3]
[329724597,1718613042403,-827.13712285,0.00027,3]
[329724605,1718613047759,-160.56549265,0.00026498,2]
[329724606,1718613047812,-160.56549265,0.00026898,2]
[329724607,1718613047906,-43687.46393149,0.00027,3]
[329724608,1718613047937,-500.0,0.00027,3]
[329724671,1718613079430,186290.22621367,0.00012998,2]
[329724691,1718613981460,520.26,0.00010959,2]
[329724692,1718614033416,348.27605979,0.00010959,2]
[329724693,1718614049299,348.27605979,0.00010959,2]
[329724694,1718614067311,348.27605979,0.00010959,2]